Cogmind - Beta 17 @@@ ROGUE MODE // 2026.08.17 @ 12:40:30 Player: THN-L0C Result: Self-destructed Performance ------------- Evolutions (4) 2000 Regions Visited (5) 1000 Robots Destroyed (63) 315 Value Destroyed (1485) 1485 Prototype IDs (17) 340 Alien Tech Used (0) 0 Bonus (300) 300 TOTAL SCORE: 5440 Bonus ------- Registered with UFD 300 Cogmind --------- Core Integrity 567/850 Matter 240/300 Energy 800/800 System Corruption 1% Temperature Cool (0) Movement Treading (400) Ox3 Location -6/Factory Parts ------- > --- POWER (2) -------- Hybrid Deuterium Engine (fused) > --- PROPULSION (2) --- Heavy Treads (fused) > --- UTILITY (9) ------ Humpback Hardened Light Armor Plating Self-contained Transmogrifier > --- WEAPON (2) ------- Makeshift Sword (fused) Falx (fused) > --- INVENTORY (35) --- Light Angular Momentum Engine Light Angular Momentum Engine Light Fission Core Armored Treads Advanced Treads Advanced Treads Scrap Suit Scrap Suit Improved Cooling System Huge Storage Unit Matter Compressor (250) Deep Structural Scanner Improved Terrain Scanner Improved Terrain Scan Processor Gun Armor Heavy Particle Cannon Barrage Gun Overtuned Barrage Gun Overtuned Barrage Gun Gauss Rifle Gauss Cannon Plasma Cutter CPS Tube (2) CPS Tube (2) CPS Tube (2) Power Sword Peak State ------------ > --- POWER ------------ Hybrid Deuterium Engine Makeshift Power Source > --- PROPULSION ------- Heavy Treads > --- UTILITY ---------- Humpback Energy Filter Improved Reaction Control System Phase Shifter Hardened Light Armor Plating Self-contained Transmogrifier > --- WEAPON ----------- Makeshift Sword Falx > --- INVENTORY -------- Light Angular Momentum Engine Light Angular Momentum Engine Light Fission Core Armored Treads Advanced Treads Advanced Treads Scrap Suit Scrap Suit Improved Cooling System Huge Storage Unit Matter Compressor Deep Structural Scanner Improved Terrain Scanner Improved Terrain Scan Processor Gun Armor Heavy Particle Cannon Barrage Gun Overtuned Barrage Gun Overtuned Barrage Gun Gauss Rifle Gauss Cannon Plasma Cutter CPS Tube CPS Tube CPS Tube Power Sword [Rating: 66] Favorites ----------- Power Light Ion Engine Engine Light Ion Engine Power Core Light Fission Core Propulsion Armored Treads Treads Armored Treads Leg Aluminum Leg Wheel Compact Wheel Utility Hardened Light Armor Plating Device Seismic Detector Storage Huge Storage Unit Protection Hardened Light Armor Plating Weapon Barrage Gun Energy Gun EM Pulse Gun Ballistic Gun Barrage Gun Ballistic Cannon Gauss Cannon Launcher Mini Grenade Launcher Special Weapon Mining Laser Impact Weapon Heavy Flail Slashing Weapon Power Sword Build | -11 -10 -10 -8 -8 -6 ------- Run | Yrd Mat Sub Rec Scr Fac Slots Evolved 8 | . . . . . 8 Power 1 | . . . . . 1 Propulsion . | . . . . . . Utility 7 | . . . . . 7 Weapon . | . . . . . . Parts Attached 49 | 7 4 11 6 7 14 Power 8 | 1 1 1 . 1 4 Engine 6 | 1 1 1 . 1 2 Core 2 | . . . . . 2 Reactor . | . . . . . . Propulsion 9 | 2 . 2 3 2 . Treads 4 | . . . 2 2 . Leg 2 | 2 . . . . . Wheel 3 | . . 2 1 . . Hover . | . . . . . . Flight . | . . . . . . Utility 19 | 2 2 2 2 1 10 Device 9 | 1 . 1 1 . 6 Storage 4 | 1 1 . 1 1 . Processor . | . . . . . . Hackware . | . . . . . . Protection 6 | . 1 1 . . 4 Artifact . | . . . . . . Weapon 13 | 2 1 6 1 3 . Energy Gun 3 | 2 . 1 . . . Energy Cannon . | . . . . . . Ballistic Gun 3 | . . 2 . 1 . Ballistic Cannon 1 | . . . . 1 . Launcher 3 | . 1 2 . . . Special Weapon 1 | . . 1 . . . Impact Weapon 1 | . . . 1 . . Slashing Weapon 1 | . . . . 1 . Piercing Weapon . | . . . . . . Special Melee Weapon . | . . . . . . Unidentified Prototypes 1 | . . . . . 1 Corrupted Parts 1 | . . 1 . . . System Corruption 2 | . . 2 . . . Parts Lost 14 | . 1 3 . . 10 Power 3 | . . 1 . . 2 Propulsion 2 | . . 2 . . . Utility 8 | . . . . . 8 Weapon 1 | . 1 . . . . Highest Loss Streak 4 | . 1 2 . . 4 To Critical Strikes . | . . . . . . Average Backups 20 | 3 9 14 18 23 29 Power . | . 1 . . . 3 Propulsion 1 | . . . 1 1 3 Utility 8 | . 3 7 9 9 11 Weapon 7 | 1 4 6 6 7 7 Tool/Special . | . . . . . . Unused Backups 33 | . 2 2 1 10 18 Power 2 | . . . . 1 1 Propulsion 3 | . 1 . . 1 1 Utility 15 | . 1 . 1 5 8 Weapon 9 | . . 2 . 3 4 Tool/Special 4 | . . . . . 4 Average Slot Usage (%) 89 | . 97 95 100 87 64 Engine 13 | . 14 13 14 13 9 Treads 15 | . . . 10 24 5 Leg 6 | . 28 27 . . . Wheel 3 | . . . 17 2 1 Device 3 | . 1 12 . . 17 Storage 12 | . 14 14 14 13 6 Protection 8 | . 12 1 14 10 7 Energy Gun 2 | . 16 6 . . . Ballistic Gun 16 | . . 7 27 21 7 Launcher 2 | . 9 7 . . . Slashing Weapon 1 | . . . . 1 4 Peak Build Rating 66 | 7 11 16 19 31 66 Average Rating 20 | 6 9 11 17 20 57 On Entrance 13 | . 7 10 16 19 31 Avg Prop Armor Cover (%) 13 | . . . 3 15 9 Naked Turns 263 | . . . . 263 . Heaviest Build 238 | 15 33 35 93 215 238 Greatest Support 70 | 20 20 40 40 42 70 Greatest Overweight (x) 14 | 2 1 2 2 13 14 Average Overweight (x) 2 | . . . 1 3 4 Largest Inventory Capacity 35 | 8 15 15 25 35 35 Average Capacity 23 | 7 10 15 21 26 35 Most Carried 35 | 6 14 15 25 35 35 Average Carried 21 | 3 9 14 19 23 31 Final Capacity 35 | 8 15 15 25 35 35 Final Carried 35 | 6 14 15 25 35 28 Transmogrified Parts 14 | . . . . . 14 Integrity Recovered 270 | . . . . . 270 Class Distribution -------------------- 73% | Mutant 20% | Hauler-Mutant 5% | Derelict-Mutant Dominant Class ---------------- Mutant | -10/Materials Mutant | -10/Subcaves Mutant | -8/Recycling Mutant | -8/Scraptown Hauler-Mutant | -6/Factory Resources | -11 -10 -10 -8 -8 -6 ----------- Run | Yrd Mat Sub Rec Scr Fac Matter Collected 2619 | 352 334 320 810 368 435 Remotely . | . . . . . . Salvage Created 2068 | 207 434 177 801 . 449 Parts 122 | 17 32 15 29 . 29 Haulers Intercepted 2 | . 2 . . . . Recyclers Shooed 10 | 1 4 . 5 . . Parts Field Recycled . | . . . . . . Retrieved Matter . | . . . . . . Parts Self-Destructed 9 | . . 9 . . . Prevented . | . . . . . . Parts Restored . | . . . . . . Kills | -11 -10 -10 -8 -8 -6 ------- Run | Yrd Mat Sub Rec Scr Fac Combat Hostiles Destroyed 37 | . 11 10 4 . 12 Guns 14 | . 3 2 4 . 5 AOE 23 | . 8 8 . . 7 Classes Destroyed 13 | 3 3 2 2 . 3 Worker 6 | 2 4 . . . . Builder 2 | . . . 1 . 1 Tunneler 4 | 3 1 . . . . Hauler 2 | . 2 . . . . Recycler 11 | 1 3 . 7 . . Mechanic 1 | . . . . . 1 Swarmer 13 | . 3 6 . . 4 Grunt 11 | . 8 . . . 3 Sentry 4 | . . . 4 . . Hunter 4 | . . . . . 4 Heavy 1 | . . . . . 1 Artisan 1 | . . 1 . . . Subdweller 4 | . . 4 . . . Best Kill Streak 5 | 3 4 4 5 . 5 Combat Bots Only 4 | . 3 4 2 . 4 Max Kills in Single Turn 3 | 1 3 2 1 . 3 Gunslinging . | . . . . . . Exploded 3 | . 3 2 . . 2 Melee . | . . . . . . Uniques/NPCs Destroyed . | . . . . . . Combat | -11 -10 -10 -8 -8 -6 -------- Run | Yrd Mat Sub Rec Scr Fac Hostile Shots Fired 225 | . 33 41 22 . 129 Missed 69 | . 12 16 7 . 34 Hits 156 | . 21 25 15 . 95 Projectile 156 | . 21 25 15 . 95 Critical Strikes 2 | . . . . . 2 Damage Taken 3079 | . 360 426 228 . 2065 Core 460 | . 74 42 61 . 283 Absorbed by Shields . | . . . . . . Ignored by Resistances 26 | . . . . . 26 Regen/Repaired (Parts) 31 | . . . . . 31 Core Remaining (%) 64 | 100 . . . 29 . Volleys Fired 165 | 9 35 43 43 . 35 Largest 2 | 2 2 2 2 . 2 Hottest 100 | 80 80 100 53 . 56 Shots Fired 258 | 18 46 53 86 . 55 Gun 187 | 18 24 19 86 . 40 Cannon . | . . . . . . Launcher 52 | . 22 15 . . 15 Special 19 | . . 19 . . . Kinetic 136 | . . 10 86 . 40 Thermal 19 | . . 19 . . . Explosive 52 | . 22 15 . . 15 Electromagnetic 51 | 18 24 9 . . . Robot Hit Streak 17 | 12 9 11 17 . 9 Robot Miss Streak 5 | 1 3 3 5 . 3 Penetration Max . | . . . . . . Secondary Targets 2 | . 1 . . . 1 Max Gunslinging Chain 1 | . 1 . . . 1 Shots Hit Robots 157 | 15 23 15 59 . 45 Core Hits 102 | 7 29 14 22 . 30 Critical Kills . | . . . . . . Critical Parts Destroyed 1 | . . . . . 1 Critical Strikes 2 | . . . . . 2 Destroy 1 | . . . . . 1 Sever 1 | . . . . . 1 Melee Attacks 8 | . . . . . 8 Impact . | . . . . . . Slashing 8 | . . . . . 8 Piercing . | . . . . . . Sneak Attacks 1 | . . . . . 1 Combat Hostiles 1 | . . . . . 1 Follow-up Attacks 1 | . . . . . 1 Damage Inflicted 4912 | 190 1727 756 919 . 1320 Guns 1969 | 190 192 193 909 . 485 Cannons . | . . . . . . Explosions 2761 | . 1510 563 . . 688 Melee 147 | . . . . . 147 Ramming 35 | . 25 . 10 . . Kinetic 1500 | . . 106 909 . 485 Thermal . | . . . . . . Explosive 2761 | . 1510 563 . . 688 Electromagnetic 469 | 190 192 87 . . . Impact . | . . . . . . Slashing 147 | . . . . . 147 Piercing . | . . . . . . Highest Corruption 2 | . . 2 2 . . Average Corruption 2 | . . 2 2 . . Corruption Purged . | . . . . . . Corruption Blocked . | . . . . . . Effects 21 | . . 11 10 . . Message Errors 5 | . . 5 . . . Matter Fused 6 | . . 1 5 . . Heat Flow Errors 2 | . . 1 1 . . Energy Discharges 4 | . . 1 3 . . Data Loss (minor) 2 | . . 1 1 . . Data Loss (major) 2 | . . 2 . . . Overload Shots . | . . . . . . Overflow Damage 79 | . 26 53 . . . Projectiles . | . . . . . . Explosions 79 | . 26 53 . . . Melee . | . . . . . . Knockbacks . | . . . . . . Impact . | . . . . . . Kinetic . | . . . . . . Secondary . | . . . . . . Self-Inflicted Damage 385 | . 145 73 . . 167 Shots 11 | . 4 2 . . 5 Rammed 1 | . . . 1 . . Targets Rammed 4 | . 3 . 1 . . Kicked 3 | . 3 . . . . Crushed . | . . . . . . Highest Temperature 326 | 90 326 260 149 . 186 Average Temperature 72 | 38 134 113 52 . 61 Received Heat Transfer 528 | . 90 69 72 . 297 Effects 2 | . 2 . . . . Energy Bleed 1 | . 1 . . . . Interference 1 | . 1 . . . . Siege Activations . | . . . . . . Martial Activations . | . . . . . . Shielding Activations . | . . . . . . Robots Disrupted . | . . . . . . Combat Hostiles . | . . . . . . Robots Corrupted . | . . . . . . Combat Hostiles . | . . . . . . Parts Fried 3 | 1 2 . . . . Impact Corruptions . | . . . . . . Robots Melted . | . . . . . . Combat Hostiles . | . . . . . . Parts Melted 1 | . . 1 . . . Heat Transferred . | . . . . . . Parts Sabotaged . | . . . . . . Parts Stolen . | . . . . . . Parts Stripped . | . . . . . . Power Chain Reactions . | . . . . . . Alert | -11 -10 -10 -8 -8 -6 ------- Run | Yrd Mat Sub Rec Scr Fac Maximum Alert Level 1 | . 1 . . . . Low Security (%) 88 | 100 48 . 100 . 100 Level 1 11 | . 51 . . . . Level 2 . | . . . . . . Level 3 . | . . . . . . Level 4 . | . . . . . . Level 5 . | . . . . . . High Security . | . . . . . . Max Security . | . . . . . . Peak Influence 309 | 10 309 . 48 . 151 Initial 48 | . . . 48 . . Average 55 | 2 176 . 7 . 41 Influence Increases 1330 | 30 547 205 181 . 367 Destroy 0b10 Robot/C 660 | . 220 120 80 . 240 Destroy 0b10 Robot/NC 130 | 30 50 . 40 . 10 Destroy Leader 94 | . 34 10 . . 50 Successful Hack 18 | . 4 . . . 14 Select Force Hacks 60 | . . . 60 . . Disable Machine 90 | . 75 . . . 15 Destroy Structure 173 | . 134 . 1 . 38 Lose Combat Pursuer 105 | . 30 75 . . . Influence Decreases 1315 | 30 278 373 282 . 352 Entered New Map 183 | . . 130 53 . . Time Decay 1002 | 30 268 223 229 . 252 Lost Part 130 | . 10 20 . . 100 Squads Dispatched 7 | . 1 . . . 6 Investigation 2 | . 1 . . . 1 Extermination 1 | . . . . . 1 Reinforcement 4 | . . . . . 4 Assault . | . . . . . . Garrison . | . . . . . . Intercept . | . . . . . . Searches Triggered . | . . . . . . Construction Impeded 1 | . . . . . 1 Haulers Reinforced . | . . . . . . Active Scanning Responses . | . . . . . . Cargo Convoy Interrupts . | . . . . . . Stealth | -11 -10 -10 -8 -8 -6 --------- Run | Yrd Mat Sub Rec Scr Fac Distress Signals 3 | . 1 . 1 . 1 Communications Jammed . | . . . . . . Distress Signals . | . . . . . . Times Spotted 50 | . 16 13 4 . 17 Peak Tracking Total 5 | . 4 3 2 . 5 Tactical Retreats 3 | . 2 1 . . . Traps | -11 -10 -10 -8 -8 -6 ------- Run | Yrd Mat Sub Rec Scr Fac Traps Triggered . | . . . . . . Indirectly . | . . . . . . Trap Hack Attempts . | . . . . . . Triggered . | . . . . . . Disarmed . | . . . . . . Reprogrammed . | . . . . . . Reused . | . . . . . . Traps Extracted . | . . . . . . Installed . | . . . . . . Triggered . | . . . . . . Machines | -11 -10 -10 -8 -8 -6 ---------- Run | Yrd Mat Sub Rec Scr Fac Machines Disabled 7 | . 5 1 . . 1 Max in Single Turn 2 | . 2 1 . . 1 Machines Repaired . | . . . . . . Machines Dismantled . | . . . . . . Machines Sabotaged . | . . . . . . Overloaded Fab Kills . | . . . . . . Hacking | -11 -10 -10 -8 -8 -6 --------- Run | Yrd Mat Sub Rec Scr Fac Machines Accessed 15 | . 3 1 5 4 2 Terminals 5 | . 2 . 2 . 1 Fabricators . | . . . . . . Repair Stations 1 | . . . . . 1 Recycling Units 4 | . 1 . 3 . . Scanalyzers . | . . . . . . Garrison Access . | . . . . . . Total Hacks 57 | . 7 9 12 23 6 Successful 43 | . 3 9 5 23 3 Failed 14 | . 4 . 7 . 3 Catastrophic 2 | . . . 2 . . Database Lockouts . | . . . . . . Manual 16 | . 6 . 7 . 3 Terminals 12 | . 6 . 3 . 3 Fabricators . | . . . . . . Repair Stations 3 | . . . . . 3 Recycling Units 10 | . 1 . 9 . . Scanalyzers . | . . . . . . Garrison Access . | . . . . . . Terminal Hacks 32 | . . 9 . 23 . Record 26 | . . 8 . 18 . Robot Analysis 5 | . . . . 5 . Proto ID Catalog 1 | . . 1 . . . Fabricator Hacks . | . . . . . . Repair Station Hacks 2 | . . . . . 2 Scan Component 1 | . . . . . 1 Repair 1 | . . . . . 1 Recycling Unit Hacks 4 | . 1 . 3 . . Report Inventory 3 | . 1 . 2 . . Retrieve Components 1 | . . . 1 . . Scanalyzer . | . . . . . . Garrison Access Hacks . | . . . . . . Unauthorized Hacks 5 | . 2 . 2 . 1 Terminals 3 | . 2 . . . 1 Botnet 1 | . . . . . 1 Skim 2 | . 2 . . . . Fabricators . | . . . . . . Repair Stations . | . . . . . . Recycling Units 2 | . . . 2 . . Tunnel 2 | . . . 2 . . Scanalyzers . | . . . . . . Garrison Access . | . . . . . . Data Cores Recovered . | . . . . . . Used . | . . . . . . Hacking Detections 7 | . 2 . 3 . 2 Full Trace Events 2 | . 1 . . . 1 Feedback Events . | . . . . . . Feedback Blocked . | . . . . . . Robot Schematics Acquired . | . . . . . . Robots Built . | . . . . . . Authchips . | . . . . . . Time . | . . . . . . Total Robot Build Rating . | . . . . . . Part Schematics Acquired . | . . . . . . Parts Built . | . . . . . . Authchips . | . . . . . . Time . | . . . . . . Total Part Build Rating . | . . . . . . Part Studies Acquired . | . . . . . . Parts Repaired 1 | . . . . . 1 Time 44 | . . . . . 44 Parts Recycled . | . . . . . . Recycled Matter . | . . . . . . Retrieved Matter . | . . . . . . Retrieved Components 2 | . . . 2 . . Parts Scanalyzed . | . . . . . . Part Schematics Acquired . | . . . . . . Parts Damaged . | . . . . . . Bothacking | -11 -10 -10 -8 -8 -6 ------------ Run | Yrd Mat Sub Rec Scr Fac Used RIF Installer . | . . . . . . Robots Hacked . | . . . . . . Non-combat . | . . . . . . Combat . | . . . . . . Robot Hacks Applied . | . . . . . . Relay Couplers Released . | . . . . . . Fabnet Peak Effective % . | . . . . . . Robots Rewired . | . . . . . . Allies Hacked . | . . . . . . Hacks Repelled . | . . . . . . Allies | -11 -10 -10 -8 -8 -6 -------- Run | Yrd Mat Sub Rec Scr Fac Total Allies . | . . . . . . Largest Group . | . . . . . . Highest-Rated Group . | . . . . . . Highest-Rated Ally . | . . . . . . Initial UFD Resources 24 | . . . . . 24 Total Orders . | . . . . . . Ally Attacks . | . . . . . . Total Damage . | . . . . . . Kills . | . . . . . . Allies Corrupted . | . . . . . . Allies Melted . | . . . . . . Intel | -11 -10 -10 -8 -8 -6 ------- Run | Yrd Mat Sub Rec Scr Fac Active Infowar (turns) 2665 | 111 60 1867 . . 627 Structural 9 | . . . . . 9 Seismic 2654 | 111 60 1867 . . 616 Cloaking 307 | . . . . . 307 Robot Analysis Total 5 | . . . . 5 . Derelict Logs Recovered 3 | . . 1 . 2 . Drone Launches . | . . . . . . Drone Recoveries . | . . . . . . Exploration | -11 -10 -10 -8 -8 -6 ------------- Run | Yrd Mat Sub Rec Scr Fac Turns Passed 11410 | 164 641 2158 1189 6318 940 Spaces Moved 4793 | 100 377 1059 671 2388 198 Core 532 | 12 . . . 520 . Treads 1828 | . . . 121 1547 160 Legs 1476 | 88 377 1011 . . . Wheels 957 | . . 48 550 321 38 Hover . | . . . . . . Flight . | . . . . . . Fastest Speed 50 | 50 120 110 105 50 220 Average Speed 222 | 118 142 186 154 261 375 Slowest Speed 477 | 150 190 260 325 477 400 Overloaded Moves . | . . . . . . Propulsion Burnouts . | . . . . . . Robots Hopped . | . . . . . . Potential Cave-ins 4 | . . 4 . . . Cave-ins Triggered . | . . . . . . Exploration Rate (%) 48 | 4 36 61 93 91 4 Regions Visited 5 Branch Regions 3 Pre-discovered Areas 9 | . . 2 2 5 . Known Exits Taken 1 | . . . . 1 . Unknown Exits Taken 4 | 1 1 1 1 . . Scrap Searched 9 | . . 3 . 6 . Spaces Dug 9 | . . 6 . . 3 Terrain Destroyed 300 | . 143 115 . . 42 Melee 3 | . . . . . 3 Projectile 11 | . . 11 . . . AOE 286 | . 143 104 . . 39 Terrain Rammed . | . . . . . . Walls Destroyed . | . . . . . . Machines Disabled . | . . . . . . Actions | -11 -10 -10 -8 -8 -6 --------- Run | Yrd Mat Sub Rec Scr Fac Total 5233 | 124 435 1142 743 2462 327 Wait 77 | 3 3 4 4 . 63 Move 4788 | 99 376 1058 670 2387 198 Hop . | . . . . . . Pick Up 86 | 6 10 7 13 46 4 Fast Attach 17 | 7 . 4 . 5 1 Attach 15 | . . 3 . 1 11 Detach . | . . . . . . Swap 45 | . 4 19 9 5 8 Drop 29 | . 4 4 3 18 . Fire 165 | 9 35 43 43 . 35 Melee 7 | . . . . . 7 Ram . | . . . . . . Kick 3 | . 3 . . . . Crush 1 | . . . 1 . . Escape Stasis . | . . . . . . Rewire . | . . . . . . Trap . | . . . . . . Miscellaneous . | . . . . . . Route ------- -11/Scrapyard -10/Materials (discovered 3 exits: [*Mat] / [*Min] / *Sub) -10/Subcaves (discovered 3 exits: [*Mat x2] / *Rec) -8/Recycling -8/Scraptown (discovered 2 exits: *Fac x2) -6/Factory History --------- Turn | Location | Event 14 | -11/Scrapyard | Discovered new exit (range 15) 165 | -11/Scrapyard | Entered Materials 329 | -10/Materials | Build established: Mutant 491 | -10/Materials | Discovered new exit (range 11) 521 | -10/Materials | Discovered new exit (range 16) 793 | -10/Materials | Discovered new exit (range 7) 806 | -10/Materials | Entered Subcaves 913 | -10/Subcaves | Ambushed by Subdweller buried in earth 1093 | -10/Subcaves | Discovered new exit (range 13) 1201 | -10/Subcaves | Discovered new exit (range 5) 1798 | -10/Subcaves | Visited 4L-MR0's lab 1810 | -10/Subcaves | Learned location of Zion (-6) 1818 | -10/Subcaves | Found Prototype Device 1853 | -10/Subcaves | Found Gun Armor 2396 | -10/Subcaves | Met a Zionite searching for "candidates" 2424 | -10/Subcaves | A swath of the cavern ceiling suddenly collapsed 2541 | -10/Subcaves | Ambushed by Subdweller buried in earth 2959 | -10/Subcaves | Discovered new exit (range 6) 2964 | -10/Subcaves | Entered Recycling 3351 | -8/Recycling | Scanned before Scraplab entrance 3633 | -8/Recycling | Core integrity fell below 50% 4120 | -8/Recycling | Entered Scraplab 4146 | -8/Recycling | Discovered new exit (range 3) 4153 | -8/Recycling | Entered Scraptown 4153 | -8/Scraptown | System corruption cleaned by C-Scrubber 4235 | -8/Scraptown | Heard Great Nut preacher, LISTEN AND RECITE! 4690 | -8/Scraptown | Discovered new exit (range 11) 4960 | -8/Scraptown | Scanned Subdweller tech in exchange for log data 4973 | -8/Scraptown | Learned Research interactive machine intel 5532 | -8/Scraptown | Visited Awakened 5627 | -8/Scraptown | Visited Cyclists 5757 | -8/Scraptown | Visited Red Mages 6495 | -8/Scraptown | Visited TADAMA 6661 | -8/Scraptown | Visited Shadow of the Wyrm 6713 | -8/Scraptown | Visited Comm Corps 7038 | -8/Scraptown | Visited UFD Registry 7038 | -8/Scraptown | Registered with UFD as "Metalchip" 7135 | -8/Scraptown | Visited Curators Association 7246 | -8/Scraptown | Visited Junk Repository 7340 | -8/Scraptown | Visited Abandonware Association 7366 | -8/Scraptown | Learned abandonware demo "OVRCLOCK.EXE" 7392 | -8/Scraptown | Learned abandonware demo "ERRANTS.EXE" 7529 | -8/Scraptown | Delivered Scrap Shield to a Scientist 7867 | -8/Scraptown | Visited Supply Room 7991 | -8/Scraptown | Visited DA-N13 Charitable Foundation 8004 | -8/Scraptown | Found DCF Scrap (32 items) 8139 | -8/Scraptown | Visited Analyses Database 8199 | -8/Scraptown | Visited Cartography Club 8361 | -8/Scraptown | Build established: Derelict-Mutant 8361 | -8/Scraptown | Visited Scrap Suit Storage 8697 | -8/Scraptown | Released all parts (7) 8748 | -8/Scraptown | Learned location of Storage (-8) 8748 | -8/Scraptown | Learned location of Lower Caves (-6) 8748 | -8/Scraptown | Learned 8 Access zone layouts 8748 | -8/Scraptown | Learned 16 Lower Caves zone layouts 8748 | -8/Scraptown | Learned 20 Lower Caves zone layouts 8748 | -8/Scraptown | Learned 24 Upper Caves zone layouts 8748 | -8/Scraptown | Learned 4 Armory zone layouts 8748 | -8/Scraptown | Learned location of 2 exits from Lower Caves 8748 | -8/Scraptown | Learned location of 2 exits from Proximity Caves 8748 | -8/Scraptown | Identified exit to Factory 8761 | -8/Scraptown | Found Deep Structural Scanner 8996 | -8/Scraptown | Build established: Mutant 9368 | -8/Scraptown | Build established: Hauler-Mutant 10185 | -8/Scraptown | Found Scrap Suit 10190 | -8/Scraptown | Found Scrap Suit 10471 | -8/Scraptown | Entered Factory 10471 | -6/Factory | Evolved 8 slots: Power x1, Utility x7 10489 | -6/Factory | Identified Sfc. Transmogrifier 10618 | -6/Factory | Repaired Imp. Cooling System 11169 | -6/Factory | Lost 4 parts (1p3u) 11411 | -6/Factory | Self-destructed Last Messages --------------- Power Source. 11383_ Sneak attack on X-62 Marksman. 11383_ X-62 Marksman Gauss Rifle severed. 11386_ Penetrated by Slug. 11386_ Energy Filter destroyed. 11389_ Penetrated by Slug. 11393_ Slug penetrates Wall. 11395_ R-10 Processor collects Gauss Rifle. 11395_ Mak. Power Source destroyed. 11398_ Slug penetrates Wall. 11398_ Penetrated by Slug. 11398_ Imp. Reaction Control System destroyed. 11401_ Penetrated by Slug. 11402_ Mak. Sword follow-up attack on H-61 Shepherd. 11404_ Penetrated by Slug. 11404_ H-61 Shepherd calls for reinforcements. 11404_ ALERT: Hostile activity reported, dispatching reinforcements to area. 11407_ Penetrated by Slug. 11410_ Phase Shifter destroyed. Map ----- +----------------------------------------------------+ | # " " " " #??????????????????????? | | + " " " " #??????????????????????? | | # " " " " #??????????????????????? | | # " " " " #??????????????????????? | | ####### #** " " " " #??????????????????????? | | ####?####### #*= #??????????????????????? | | ??????###### # #??????????????????????? | | ???????????# ###########+##??????????????????????? | | ???????????# #?????????# #???????????????????????? | | ???????????# #?????????# #???????????????????????? | | ???????????? #?????????# #???????????????????????? | | ???????????? #?????????# #???????????????????????? | | ???????????? +?????????# #???????????????????????? | | ???????????? #?????????# #???????????????????????? | | ???????????? ?????????## ##????????? ????????????? | | ???????????? ?????????# #########;#????????????? | | ???????????? ?????????# + #????????????? | | ?????????????????? ???+ # [ #????????????? | | ????????????????""""??# # #????????????? | | ???????????????"""F""?# # #????????????? | | ?????????????????" "" # # = #????????????? | | ??????????????????? # # #????????????? | | ????????????????????? /x x #????????????? | | ??????????????????????# ;% #????????????? | | ?????????????????????## %;#########????????????? | | ?????????????????????# @ ##????????????????????? | | ?????????????????????# ; #???????????????????? | | ??????????????????? p H [ ###???????????????????? | | ?????????????????#+### #?????????????????????? | | ?????????????????????# #?????????????????????? | | ?????????????????????###+###?????????????????????? | | ?????????????????????????????????????????????????? | | ?????????????????????????????????????????????????? | | ?????????????????????????????????????????????????? | | ?????????????????????????????????????????????????? | | ?????????????????????????????????????????????????? | | ?????????????????????????????????????????????????? | | ?????????????????????????????????????????????????? | | ?????????????????????????????????????????????????? | | ?????????????????????????????????????????????????? | | ?????????????????????????????????????????????????? | | ?????????????????????????????????????????????????? | | ?????????????????????????????????????????????????? | | ?????????????????????????????????????????????????? | | ?????????????????????????????????????????????????? | | ?????????????????????????????????????????????????? | | ?????????????????????????????????????????????????? | | ?????????????????????????????????????????????????? | | ?????????????????????????????????????????????????? | | ?????????????????????????????????????????????????? | +----------------------------------------------------+ Best States ------------- Heat Dissipation 37 Energy Generation 31 Energy Capacity 870 Matter Stores 300 Matter Capacity 300 Sight Range 16 Terrain Scan Density 10 Cloak Strength 2 Armor Coverage 525 Resistance: TH 10 Phase Shifting 5 Evasion (%) 55 Recoil Reduction 2 Energy Filtering 30 Kinecelleration 30 Item Schematics ----------------- None Robot Schematics ------------------ None Fabricated ------------ Nothing Repaired ---------- Imp. Cooling System | 55% | -6/Factory Studied --------- None Alien Tech Used ----------------- None Achievements -------------- None Challenges ------------ None Game ------ Seed HeartLayeredSubcomponent Manual? 0 Play Time 00:49:35 Cumulative 437.5 hours Start 2026.08.17 @ 11:39:13 End 2026.08.17 @ 12:40:30 Sessions 1 Manual Loads 0 Difficulty Rogue Special Mode None Game No. 325 Rogue 325 Adventurer 0 Explorer 0 Win Type - Total 9 Types 4/0/3/2/0/0/0/0/0/0 Lore% 78 Gallery% 73 Achievement% 55 Wizard Run 0 Options --------- Layout 2 ASCII 0 Keyboard 1 Movement Vi Keybinds 0 Fullscreen 2 Font 32/SmallcapsGlow Map View 77x44 Zoom Use 0% Tactical HUD 1 Map Filters NONE Filters NONE Steam 1 RUN: becfaaeb-c9d4-4537-9a8a-885b7e01a517